fUST/lending_fUST_20240822
["ID","MTS","AMOUNT","RATE_DAILY","PERIOD"]
[335534647,1724314262528,-1098.09,0.00020273,7]
[335534648,1724314262537,-500.0,0.00020273,7]
[335534649,1724314262546,-500.0,0.00020273,7]
[335534650,1724314262555,-500.0,0.00020273,2]
[335534651,1724314262564,-500.0,0.00020273,7]
[335534652,1724314262575,-500.0,0.00020273,7]
[335534653,1724314262585,-500.0,0.00020273,7]
[335534654,1724314262594,-389.85009127,0.00020273,7]
[335534655,1724314262604,-500.0,0.00020273,7]
[335534656,1724314262614,-500.0,0.00020273,7]
[335534657,1724314262623,-500.0,0.00020273,7]
[335534658,1724314262633,-500.0,0.00020273,7]
[335534659,1724314262643,-500.0,0.00020273,7]
[335534660,1724314262652,-552.88,0.00020273,7]
[335534661,1724314262661,-808.36,0.00020273,7]
[335534662,1724314262671,-500.0,0.00020273,7]
[335534663,1724314262680,-1876.77,0.000203,2]
[335534664,1724314262690,-250.0,0.00020321,2]
[335534665,1724314262699,-259.0738545,0.00020321,2]
[335534666,1724314262708,-3142.89546402,0.00020377,2]
[335534667,1724314262717,-5387.42477548,0.00020551,15]
[335534668,1724314262727,-1261.03115662,0.0002061,2]
[335534669,1724314262736,-126537.40175531,0.0002061,2]
[335534670,1724314262746,-154.76012181,0.0002061,2]
[335534671,1724314262755,-1672.36760276,0.0002061,2]
[335534672,1724314262764,-154.76012181,0.0002061,2]
[335534673,1724314262774,-10515.51217135,0.0002061,2]
[335534674,1724314262783,-287.21457155,0.0002061,2]
[335534675,1724314262793,-172.16736726,0.0002061,2]
[335534676,1724314262802,-2800.0,0.0002061,2]
[335534677,1724314262812,-1500.0,0.00020619,2]
[335534678,1724314262821,-4257.4559107,0.0002066,7]
[335534679,1724314262831,-155.0,0.0002066,4]
[335534680,1724314262840,-400.276022,0.00020707,2]
[335534681,1724314262849,-2450.73120425,0.0002072,2]
[335534682,1724314262859,-500.0,0.00020805,2]
[335534683,1724314262867,-230.13462078,0.00020821,7]
[335534684,1724314262877,-500.0,0.00020821,7]
[335534685,1724314262887,-500.0,0.00020821,7]
[335534686,1724314262896,-500.0,0.00020821,7]
[335534687,1724314262905,-500.0,0.00020821,7]
[335534688,1724314262915,-500.0,0.00020821,7]
[335534689,1724314262924,-500.0,0.00020821,7]
[335534690,1724314262933,-500.0,0.00020821,7]
[335534691,1724314262942,-500.0,0.00020821,7]
[335534692,1724314262951,-500.0,0.00020821,7]
[335534693,1724314262960,-500.0,0.00020821,7]
[335534694,1724314262970,-500.0,0.00020821,7]
[335534695,1724314262982,-500.0,0.00020821,7]
[335534696,1724314262992,-500.0,0.00020821,7]
[335534697,1724314263001,-504.35628686,0.00020821,7]
[335534698,1724314263010,-500.0,0.00020821,7]
[335534699,1724314263021,-500.0,0.00020821,7]
[335534700,1724314263030,-500.0,0.00020821,7]
[335534701,1724314263040,-500.0,0.00020821,7]
[335534702,1724314263049,-500.0,0.00020821,7]
[335534703,1724314263058,-500.0,0.00020821,7]
[335534704,1724314263070,-500.0,0.00020821,7]
[335534705,1724314263079,-500.0,0.00020821,7]
[335534706,1724314263089,-513.84257749,0.00020821,7]
[335534707,1724314263098,-507.97879515,0.00020821,7]
[335534708,1724314263107,-503.28953034,0.00020821,7]
[335534709,1724314263117,-500.0,0.00020821,7]
[335534710,1724314263126,-500.0,0.00020821,7]
[335534711,1724314263135,-500.0,0.00020821,7]
[335534712,1724314263145,-500.0,0.00020821,7]
[335534713,1724314263155,-500.0,0.00020821,7]
[335534714,1724314263164,-500.0,0.00020821,7]
[335534715,1724314263173,-500.0,0.00020821,7]
[335534716,1724314263183,-500.0,0.00020821,7]
[335534717,1724314263193,-500.0,0.00020821,7]
[335534718,1724314263203,-619.61393819,0.00020821,7]
[335534719,1724314263212,-500.0,0.00020821,7]
[335534720,1724314263221,-500.0,0.00020821,7]
[335534721,1724314263230,-500.0,0.00020821,7]
[335534722,1724314263240,-500.0,0.00020821,7]
[335534723,1724314263249,-379.31173874,0.00020821,7]
[335534724,1724314263258,-500.0,0.00020821,7]
[335534725,1724314263267,-500.0,0.00020821,7]
[335534726,1724314263277,-500.0,0.00020821,7]
[335534727,1724314263286,-500.0,0.00020821,7]
[335534728,1724314263296,-500.0,0.00020821,7]
[335534729,1724314263306,-500.0,0.00020821,7]
[335534730,1724314263315,-500.0,0.00020821,7]
[335534731,1724314263326,-500.0,0.00020821,7]
[335534732,1724314263335,-500.0,0.00020821,7]
[335534733,1724314263345,-500.0,0.00020821,7]
[335534734,1724314263355,-500.0,0.00020821,7]
[335534735,1724314263366,-500.0,0.00020821,7]
[335534736,1724314263375,-500.0,0.00020821,7]
[335534737,1724314263385,-500.0,0.00020821,7]
[335534738,1724314263395,-500.0,0.00020821,7]
[335534739,1724314263405,-500.0,0.00020821,7]
[335534740,1724314263414,-500.0,0.00020821,7]
[335534741,1724314263424,-500.0,0.00020821,7]
[335534742,1724314263434,-500.0,0.00020821,7]
[335534743,1724314263443,-519.63,0.00020821,7]
[335534744,1724314263453,-500.0,0.00020821,7]
[335534745,1724314263462,-500.0,0.00020821,7]
[335534746,1724314263472,-572.73510506,0.00020821,7]
[335534747,1724314263482,-500.0,0.00020821,7]
[335534748,1724314263491,-500.0,0.00020821,7]
[335534749,1724314263501,-500.0,0.00020821,7]
[335534750,1724314263511,-500.0,0.00020821,7]
[335534751,1724314263520,-374.92301517,0.00020821,7]
[335534752,1724314263530,-359.84290112,0.00020821,7]
[335534753,1724314263540,-500.0,0.00020821,7]
[335534754,1724314263549,-500.0,0.00020821,7]
[335534755,1724314263560,-340.99234598,0.00020821,7]
[335534756,1724314263571,-550.63,0.00020821,7]
[335534757,1724314263581,-500.0,0.00020821,7]
[335534758,1724314263590,-500.0,0.00020821,7]
[335534759,1724314263599,-500.0,0.00020821,7]
[335534760,1724314263609,-1043.29,0.00020821,7]
[335534761,1724314263619,-500.0,0.00020821,7]
[335534762,1724314263628,-500.0,0.00020821,7]
[335534763,1724314263638,-500.0,0.00020821,7]
[335534764,1724314263648,-500.0,0.00020821,7]
[335534765,1724314263658,-566.89,0.00020821,7]
[335534766,1724314263668,-500.0,0.00020821,7]
[335534767,1724314263678,-500.0,0.00020821,7]
[335534768,1724314263687,-500.0,0.00020821,7]
[335534769,1724314263698,-500.0,0.00020821,7]
[335534770,1724314263708,-500.0,0.00020821,7]
[335534771,1724314263719,-500.0,0.00020821,7]
[335534772,1724314263728,-741.64,0.00020821,7]
[335534773,1724314263738,-500.0,0.00020821,7]
[335534774,1724314263748,-500.0,0.00020821,7]
[335534775,1724314263758,-500.0,0.00020821,7]
[335534776,1724314263769,-500.0,0.00020821,7]
[335534777,1724314263779,-500.0,0.00020821,7]
[335534778,1724314263789,-500.0,0.00020821,7]
[335534779,1724314263798,-2660.03,0.00020821,7]
[335534780,1724314263808,-500.0,0.00020821,7]
[335534781,1724314263818,-500.0,0.00020821,7]
[335534782,1724314263830,-500.0,0.00020821,7]
[335534783,1724314263840,-535.16,0.00020821,7]
[335534784,1724314263849,-500.0,0.00020821,7]
[335534785,1724314263859,-500.0,0.00020821,7]
[335534786,1724314263870,-506.57827969,0.00020821,7]
[335534787,1724314263881,-500.0,0.00020821,7]
[335534788,1724314263892,-500.0,0.00020821,7]
[335534789,1724314263902,-500.0,0.00020821,7]
[335534790,1724314263912,-567.48,0.00020821,7]
[335534791,1724314263923,-500.0,0.00020821,7]
[335534792,1724314263933,-500.0,0.00020821,7]
[335534793,1724314263943,-500.0,0.00020821,7]
[335534794,1724314263953,-500.0,0.00020821,7]
[335534795,1724314263963,-200.0,0.00020821,7]
[335534796,1724314263975,-514.87637696,0.00020821,7]
[335534797,1724314263986,-500.0,0.00020821,7]
[335534798,1724314263995,-500.0,0.00020821,7]
[335534799,1724314264005,-500.0,0.00020821,7]
[335534800,1724314264015,-500.0,0.00020821,7]
[335534801,1724314264027,-500.0,0.00020821,7]
[335534802,1724314264037,-713.27,0.00020821,7]
[335534803,1724314264046,-500.0,0.00020821,7]
[335534804,1724314264057,-500.0,0.00020821,7]
[335534805,1724314264068,-500.0,0.00020821,7]
[335534806,1724314264084,-500.0,0.00020821,7]
[335534807,1724314264094,-500.0,0.00020821,7]
[335534808,1724314264103,-781.35,0.00020821,7]
[335534809,1724314264112,-500.0,0.00020821,7]
[335534810,1724314264123,-2169.36,0.00020821,7]
[335534811,1724314264133,-500.0,0.00020821,7]
[335534812,1724314264142,-500.0,0.00020821,7]
[335534813,1724314264152,-518.75,0.00020821,7]
[335534814,1724314264162,-500.0,0.00020821,7]
[335534815,1724314264172,-500.0,0.00020821,7]
[335534816,1724314264181,-641.77,0.00020821,7]
[335534817,1724314264191,-500.0,0.00020821,7]
[335534818,1724314264201,-500.0,0.00020821,7]
[335534819,1724314264210,-521.15,0.00020821,7]
[335534820,1724314264219,-500.0,0.00020821,7]
[335534821,1724314264230,-500.0,0.00020821,7]
[335534822,1724314264240,-524.55,0.00020821,7]
[335534823,1724314264250,-500.0,0.00020821,7]
[335534824,1724314264259,-500.0,0.00020821,7]
[335534825,1724314264268,-558.23,0.00020821,7]
[335534826,1724314264278,-500.0,0.00020821,7]
[335534827,1724314264288,-500.0,0.00020821,7]
[335534828,1724314264297,-678.49,0.00020821,7]
[335534829,1724314264307,-592.59,0.00020821,7]
[335534830,1724314264317,-500.0,0.00020821,7]
[335534831,1724314264335,-512.03,0.00020821,7]
[335534832,1724314264343,-650.18,0.00020821,7]
[335534833,1724314264352,-500.0,0.00020821,7]
[335534834,1724314264362,-414.01371432,0.00020821,7]
[335534835,1724314264373,-500.0,0.00020821,7]
[335534836,1724314264383,-500.0,0.00020821,7]
[335534837,1724314264393,-500.0,0.00020821,7]
[335534838,1724314264403,-594.21,0.00020821,7]
[335534839,1724314264413,-500.0,0.00020821,7]
[335534840,1724314264422,-500.0,0.00020821,7]
[335534841,1724314264432,-2929.49,0.00020821,7]
[335534842,1724314264441,-793.53,0.00020821,7]
[335534843,1724314264451,-506.17375207,0.00020821,7]
[335534844,1724314264460,-500.0,0.00020821,7]
[335534845,1724314264470,-500.0,0.00020821,7]
[335534846,1724314264480,-500.0,0.00020821,7]
[335534847,1724314264489,-500.0,0.00020821,7]
[335534848,1724314264498,-988.14,0.00020821,7]
[335534849,1724314264508,-500.0,0.00020821,7]
[335534850,1724314264517,-534.4,0.00020821,7]
[335534851,1724314264526,-500.0,0.00020821,7]
[335534852,1724314264535,-521.5,0.00020821,7]
[335534853,1724314264545,-1163.67,0.00020821,7]
[335534854,1724314264554,-214.89514497,0.00020821,7]
[335534855,1724314264563,-500.0,0.00020821,7]
[335534856,1724314264573,-729.54,0.00020821,7]
[335534857,1724314264583,-526.53,0.00020821,7]
[335534858,1724314264592,-500.0,0.00020821,7]
[335534859,1724314264601,-1769.8,0.00020821,7]
[335534860,1724314264610,-500.0,0.00020821,7]
[335534861,1724314264620,-500.0,0.00020821,7]
[335534862,1724314264630,-500.0,0.00020821,7]
[335534863,1724314264639,-500.0,0.00020821,7]
[335534864,1724314264649,-500.0,0.00020821,7]
[335534865,1724314264659,-500.0,0.00020821,7]
[335534866,1724314264668,-500.0,0.00020821,7]
[335534867,1724314264678,-500.0,0.00020821,7]
[335534868,1724314264688,-1000.03,0.00020821,7]
[335534869,1724314264697,-500.0,0.00020821,7]
[335534870,1724314264707,-500.0,0.00020821,7]
[335534871,1724314264716,-500.0,0.00020821,7]
[335534872,1724314264726,-500.0,0.00020821,7]
[335534873,1724314264735,-500.0,0.00020821,7]
[335534874,1724314264745,-500.0,0.00020821,7]
[335534875,1724314264754,-500.0,0.00020821,7]
[335534876,1724314264763,-500.0,0.00020821,7]
[335534877,1724314264772,-500.0,0.00020821,7]
[335534878,1724314264782,-500.0,0.00020821,7]
[335534879,1724314264791,-500.0,0.00020821,7]
[335534880,1724314264800,-500.0,0.00020821,7]
[335534881,1724314264810,-500.0,0.00020821,7]
[335534882,1724314264819,-500.0,0.00020821,7]
[335534883,1724314264829,-500.0,0.00020821,7]
[335534884,1724314264838,-2377.17,0.00020821,7]
[335534885,1724314264847,-500.0,0.00020821,7]
[335534886,1724314264856,-1265.96,0.00020821,7]
[335534887,1724314264865,-750.59,0.00020821,7]
[335534888,1724314264874,-500.0,0.00020821,7]
[335534889,1724314264884,-500.0,0.00020821,7]
[335534890,1724314264893,-2580.48,0.00020821,7]
[335534891,1724314264902,-805.05118051,0.00020821,7]
[335534892,1724314264911,-500.0,0.00020821,7]
[335534893,1724314264920,-500.0,0.00020821,7]
[335534894,1724314264930,-500.0,0.00020821,7]
[335534895,1724314264939,-500.0,0.00020821,7]
[335534896,1724314264949,-500.0,0.00020821,7]
[335534897,1724314264959,-1474.18,0.00020821,7]
[335534898,1724314264968,-500.0,0.00020821,7]
[335534899,1724314264981,-500.0,0.00020821,7]
[335534900,1724314264991,-500.0,0.00020821,7]
[335534901,1724314265000,-500.0,0.00020821,7]
[335534902,1724314265009,-500.0,0.00020821,7]
[335534903,1724314265018,-500.0,0.00020821,7]
[335534904,1724314265027,-500.0,0.00020821,7]
[335534905,1724314265036,-500.0,0.00020821,7]
[335534906,1724314265045,-500.0,0.00020821,7]
[335534907,1724314265056,-500.0,0.00020821,7]
[335534908,1724314265066,-500.0,0.00020821,7]
[335534909,1724314265076,-500.0,0.00020821,7]
[335534910,1724314265085,-500.0,0.00020821,7]
[335534911,1724314265094,-500.0,0.00020821,7]
[335534912,1724314265103,-500.0,0.00020821,7]
[335534913,1724314265112,-500.0,0.00020821,7]
[335534914,1724314265122,-500.0,0.00020821,7]
[335534915,1724314265132,-500.0,0.00020821,7]
[335534916,1724314265142,-500.0,0.00020821,7]
[335534917,1724314265152,-500.0,0.00020821,7]
[335534918,1724314265285,-664.22,0.00020821,7]
[335534919,1724314265295,-4213.85,0.00020821,7]
[335534920,1724314265305,-500.0,0.00020821,7]
[335534921,1724314265314,-500.0,0.00020821,7]
[335534922,1724314265324,-500.0,0.00020821,7]
[335534923,1724314265334,-505.49,0.00020821,7]
[335534924,1724314265343,-500.0,0.00020821,7]
[335534925,1724314265352,-5692.17,0.00020821,7]
[335534926,1724314265361,-500.0,0.00020821,7]
[335534927,1724314265370,-293.93492878,0.00020821,7]
[335534928,1724314265380,-10474.35,0.00020821,7]
[335534929,1724314265390,-500.0,0.00020821,7]
[335534930,1724314265399,-500.0,0.00020821,7]
[335534931,1724314265409,-500.0,0.00020821,7]
[335534932,1724314265419,-1229.7,0.00020821,7]
[335534933,1724314265429,-500.0,0.00020821,7]
[335534934,1724314265438,-500.0,0.00020821,7]
[335534935,1724314265447,-500.0,0.00020821,7]
[335534936,1724314265457,-151.60527815,0.00020821,7]
[335534937,1724314265466,-5892.9,0.00020821,7]
[335534938,1724314265475,-500.0,0.00020821,7]
[335534939,1724314265484,-500.0,0.00020821,7]
[335534940,1724314265494,-500.0,0.00020821,7]
[335534941,1724314265504,-500.0,0.00020821,7]
[335534942,1724314265514,-500.0,0.00020821,7]
[335534943,1724314265523,-500.0,0.00020821,7]
[335534944,1724314265532,-500.0,0.00020821,7]
[335534945,1724314265543,-12225.58,0.00020821,7]
[335534946,1724314265553,-500.0,0.00020821,7]
[335534947,1724314265565,-22280.85,0.00020821,7]
[335534948,1724314265577,-500.0,0.00020821,7]
[335534949,1724314265586,-626.93,0.00020821,7]
[335534950,1724314265596,-500.0,0.00020821,7]
[335534951,1724314265607,-584.08,0.00020821,7]
[335534952,1724314265620,-630.08,0.00020821,7]
[335534953,1724314265631,-2786.21,0.00020821,7]
[335534954,1724314265642,-2303.06,0.00020821,7]
[335534955,1724314265652,-500.0,0.00020821,7]
[335534956,1724314265662,-500.0,0.00020821,7]
[335534957,1724314265671,-1202.63,0.00020821,7]
[335534958,1724314265680,-500.0,0.00020821,7]
[335534959,1724314265689,-500.0,0.00020821,7]
[335534960,1724314265699,-500.0,0.00020821,7]
[335534961,1724314265709,-500.0,0.00020821,7]
[335534962,1724314265718,-500.0,0.00020821,7]
[335534963,1724314265727,-1131.48,0.00020821,7]
[335534964,1724314265737,-500.0,0.00020821,7]
[335534965,1724314265746,-500.0,0.00020821,7]
[335534966,1724314265755,-891.44,0.00020821,7]
[335534967,1724314265764,-500.0,0.00020821,7]
[335534968,1724314265774,-541.40562761,0.00020821,7]
[335534969,1724314265783,-500.0,0.00020821,7]
[335534970,1724314265793,-553.67543155,0.00020821,7]
[335534971,1724314265802,-500.0,0.00020821,7]
[335534972,1724314265812,-500.0,0.00020821,7]
[335534973,1724314265823,-637.13,0.00020821,7]
[335534974,1724314265832,-500.0,0.00020821,7]
[335534975,1724314265842,-500.0,0.00020821,7]
[335534976,1724314265852,-500.0,0.00020821,7]
[335534977,1724314265862,-500.0,0.00020821,7]
[335534978,1724314265872,-2762.28,0.00020821,7]
[335534979,1724314265881,-500.0,0.00020821,7]
[335534980,1724314265891,-500.0,0.00020821,7]
[335534981,1724314265901,-509.79263989,0.00020821,7]
[335534982,1724314265911,-500.0,0.00020821,7]
[335534983,1724314265921,-500.0,0.00020821,7]
[335534984,1724314265930,-500.0,0.00020821,7]
[335534985,1724314265940,-500.0,0.00020821,7]
[335534986,1724314265950,-1679.68,0.00020821,7]
[335534987,1724314265959,-500.0,0.00020821,7]
[335534988,1724314265969,-500.0,0.00020821,7]
[335534989,1724314265983,-500.0,0.00020821,7]
[335534990,1724314265993,-500.0,0.00020821,7]
[335534991,1724314266002,-500.0,0.00020821,7]
[335534992,1724314266012,-500.0,0.00020821,7]
[335534993,1724314266022,-868.1,0.00020821,7]
[335534994,1724314266031,-500.0,0.00020821,7]
[335534995,1724314266041,-500.0,0.00020821,7]
[335534996,1724314266051,-500.0,0.00020821,7]
[335534997,1724314266062,-500.0,0.00020821,7]
[335534998,1724314266071,-3297.73,0.00020821,7]
[335534999,1724314266081,-1612.66,0.00020821,7]
[335535000,1724314266090,-500.0,0.00020821,7]
[335535001,1724314266099,-500.0,0.00020821,7]
[335535002,1724314266108,-500.0,0.00020821,7]
[335535003,1724314266118,-367.81215386,0.00020821,7]
[335535040,1724315331853,241.79412683,9.907e-05,2]
[335535045,1724315377794,150.0,9.907e-05,2]
[335535046,1724315377820,123.37336231,9.907e-05,2]
[335535047,1724315393760,273.37336231,9.907e-05,2]
[335535083,1724315432062,-886.68,0.00010959,2]
[335535085,1724315432072,-717.94385831,0.00012008,2]
[335535087,1724315432082,-1744.62660833,0.00012629,2]
[335535089,1724315432094,-851.8375381,0.00012629,2]
[335535091,1724315432104,-288.24477057,0.00012898,2]
[335535094,1724315432115,-602.68966545,0.00012898,2]
[335535096,1724315432125,-156.84074619,0.00012934,2]
[335535098,1724315432136,-493.36312925,0.00012971,2]
[335535100,1724315432146,-155.27716139,0.00012985,2]
[335535102,1724315432156,-301.8248988,0.00012989,3]
[335535104,1724315432165,-5116.0658385,0.00013008,2]
[335535106,1724315432175,-300.0,0.00013064,2]
[335535108,1724315432184,-300.0,0.00013064,2]
[335535110,1724315432193,-3627.6600463,0.00013065,2]
[335535112,1724315432203,-593.78729878,0.00013477,2]
[335535114,1724315432213,-194.83065114,0.00013699,2]
[335535116,1724315432222,-817.60790766,0.00014245,3]
[335535118,1724315432232,-360.248419,0.00014247,2]
[335535120,1724315432241,-168.677021,0.00014247,2]
[335535122,1724315432252,-420.0,0.0001437,2]
[335535124,1724315432265,-3000.0,0.00014399,2]
[335535126,1724315432275,-284.6604202,0.00014631,2]
[335535128,1724315432285,-3216.93783679,0.000149,2]
[335535130,1724315432294,-200.0,0.00014973,2]
[335535132,1724315432304,-165.15398914,0.00014989,2]
[335535134,1724315432314,-5107.29266174,0.0001499,2]
[335535137,1724315432326,-777.46748131,0.0001499,2]
[335535376,1724315438138,-210.14248726,0.000149,2]
[335535377,1724315438148,-12919.83853693,0.0001499,2]
[335535378,1724315438160,-1830.75,0.0001499,2]
[335535379,1724315438172,-120629.97257802,0.0001499,2]
[335535380,1724315438182,-161055.0,0.00015,2]
[335535381,1724315438192,-151.50865869,0.0001505,2]
[335535382,1724315438201,-159.190031,0.0001515,2]
[335535383,1724315438210,-159.190031,0.00015308,2]
[335535384,1724315438219,-159.190031,0.00015466,2]
[335535385,1724315438229,-159.190031,0.00015623,2]
[335535386,1724315438238,-159.190031,0.00015781,2]
[335535387,1724315438247,-587.0,0.00015807,2]
[335535389,1724315438260,-159.190031,0.00015939,2]
[335535391,1724315438282,-823.0,0.00017388,2]
[335535392,1724315438291,-3216.93783679,0.00017757,2]
[335535393,1724315438302,-211.35095117,0.0001784,2]
[335535394,1724315438312,-409.07486813,0.0001784,2]
[335535395,1724315438321,-500.0,0.0001784,2]
[335535396,1724315438331,-500.0,0.0001784,2]
[335535397,1724315438342,-265.97417603,0.0001784,2]
[335535398,1724315438351,-500.0,0.0001784,2]
[335535399,1724315438361,-500.0,0.0001784,2]
[335535400,1724315438370,-500.0,0.0001784,2]
[335535401,1724315438380,-500.0,0.0001784,2]
[335535402,1724315438389,-500.0,0.0001784,2]
[335535403,1724315438399,-500.0,0.0001784,2]
[335535404,1724315438409,-500.0,0.0001784,2]
[335535405,1724315438418,-500.0,0.0001784,2]
[335535406,1724315438428,-500.0,0.0001784,2]
[335535407,1724315438437,-500.0,0.0001784,2]
[335535408,1724315438447,-500.0,0.0001784,2]
[335535409,1724315438456,-500.0,0.0001784,2]
[335535410,1724315438465,-500.0,0.0001784,2]
[335535411,1724315438475,-500.0,0.0001784,2]
[335535412,1724315438484,-5302.43297916,0.00017841,2]
[335535413,1724315438493,-953.69627248,0.00017999,2]
[335535414,1724315438502,-154.76012181,0.00018,2]
[335535415,1724315438512,-1000.0,0.00018,18]
[335535416,1724315438522,-70632.6606289,0.00018112,2]
[335535417,1724315438531,-500.0,0.000182,2]
[335535418,1724315438540,-5262.26194935,0.00018319,2]
[335535419,1724315438724,189.47004263,9.907e-05,2]
[335535429,1724315440277,-40.17102981,0.00018319,2]
[335535430,1724315440287,-361.715077,0.00018521,2]
[335535431,1724315440296,-1761.26477018,0.00018541,2]
[335535436,1724315440564,-3541.16820898,0.00018541,2]
[335535437,1724315440573,-1000.0,0.00018748,2]
[335535438,1724315440590,-4753.32962802,0.00018758,2]
[335535439,1724315440605,-5302.43297916,0.00018831,2]
[335535440,1724315440616,-2126.03812597,0.00018968,2]
[335535441,1724315440626,-5302.43297916,0.00018989,2]
[335535442,1724315440637,-336.96351403,0.00019,2]
[335535443,1724315440647,-1000.0,0.00019,19]
[335535444,1724315440659,-1559.78457281,0.00019,2]
[335535445,1724315440671,-141265.321258,0.00019058,2]
[335535446,1724315440683,-88888.0,0.00019068,2]
[335535447,1724315440695,-1152.0,0.00019127,2]
[335535448,1724315440706,-59529.01126081,0.00019178,9]
[335535449,1724315440718,-501.55862474,0.00019178,2]
[335535450,1724315440731,-517.64792343,0.00019178,2]
[335535451,1724315440742,-500.76219701,0.00019178,2]
[335535452,1724315440754,-620.02990399,0.00019178,2]
[335535453,1724315440766,-500.0,0.00019178,2]
[335535454,1724315440789,-518.43519738,0.00019178,2]
[335535455,1724315440799,-500.0,0.00019178,2]
[335535456,1724315440812,-501.28948849,0.00019178,2]
[335535457,1724315440823,-500.0,0.00019178,2]
[335535458,1724315440835,-503.25111979,0.00019178,2]
[335535459,1724315440846,-500.0,0.00019178,2]
[335535460,1724315440858,-504.63083757,0.00019178,2]
[335535461,1724315440869,-500.0,0.00019178,2]
[335535462,1724315440881,-500.0,0.00019178,2]
[335535463,1724315440894,-500.0,0.00019178,2]
[335535464,1724315440905,-500.0,0.00019178,2]
[335535465,1724315440917,-500.86473864,0.00019178,2]
[335535466,1724315440928,-869.41,0.00019178,2]
[335535467,1724315440940,-500.0,0.00019178,2]
[335535468,1724315440952,-500.0,0.00019178,2]
[335535469,1724315440963,-500.0,0.00019178,2]
[335535470,1724315440974,-500.0,0.00019178,2]
[335535471,1724315440986,-500.0,0.00019178,2]
[335535472,1724315440998,-501.4501364,0.00019178,2]
[335535473,1724315441009,-500.0,0.00019178,2]
[335535474,1724315441020,-500.0,0.00019178,2]
[335535475,1724315441030,-500.0,0.00019178,2]
[335535476,1724315441039,-500.0,0.00019178,2]
[335535477,1724315441049,-500.0,0.00019178,2]
[335535478,1724315441059,-500.0,0.00019178,2]
[335535479,1724315441070,-500.0,0.00019178,2]
[335535480,1724315441082,-500.0,0.00019178,2]
[335535481,1724315441092,-561.55,0.00019178,2]
[335535482,1724315441103,-500.0,0.00019178,2]
[335535483,1724315441113,-500.0,0.00019178,2]
[335535484,1724315441122,-500.0,0.00019178,2]
[335535485,1724315441132,-500.0,0.00019178,2]
[335535486,1724315441144,-500.0,0.00019178,2]
[335535487,1724315441155,-500.0,0.00019178,2]
[335535488,1724315441167,-500.0,0.00019178,2]
[335535489,1724315441177,-500.0,0.00019178,2]
[335535490,1724315441188,-500.0,0.00019178,2]
[335535491,1724315441201,-500.0,0.00019178,2]
[335535492,1724315441212,-500.0,0.00019178,2]
[335535493,1724315441224,-500.0,0.00019178,2]
[335535494,1724315441234,-500.0,0.00019178,2]
[335535495,1724315441244,-500.0,0.00019178,2]
[335535496,1724315441255,-500.0,0.00019178,2]
[335535497,1724315441267,-500.0,0.00019178,2]
[335535498,1724315441277,-500.0,0.00019178,2]
[335535499,1724315441287,-247.84212373,0.00019178,2]
[335535500,1724315441297,-227.25897243,0.00019178,2]
[335535501,1724315441308,-500.0,0.00019178,2]
[335535502,1724315441318,-500.0,0.00019178,2]